[Event "Titled Tuesday Blitz April 4 Late 2023"]
[White "Vifleemskaia, Svetlana"]
[Black "Kalajzic, Ivan"]
[WhiteFideId "4129490"]
[BlackFideId "14506378"]
[WhiteElo "1930"]
[BlackElo "2203"]
[Result "1-0"]
[Round "07"]
[TimeControl "180+2"]
[Date "2023.04.04"]
[WhiteClock "0:00:10"]
[BlackClock "0:00:11"]

1. d4 {[%clk 0:02:55]}  Nc6 {[%clk 0:02:43]} 2. Nf3 {[%clk 0:02:53]}  d6 {[%clk 0:02:42]} 3. e4 {[%clk 0:02:51]}  Bg4 {[%clk 0:02:42]} 4. Be2 {[%clk 0:02:50]}  e5 {[%clk 0:02:41]} 5. d5 {[%clk 0:02:50]}  Nce7 {[%clk 0:02:41]} 6. h3 {[%clk 0:02:50]}  Bd7 {[%clk 0:02:40]} 7. c4 {[%clk 0:02:45]}  Nf6 {[%clk 0:02:40]} 8. Nc3 {[%clk 0:02:44]}  g6 {[%clk 0:02:40]} 9. Bg5 {[%clk 0:02:43]}  Bg7 {[%clk 0:02:40]} 10. Qd2 {[%clk 0:02:43]}  O-O {[%clk 0:02:40]} 11. Bh6 {[%clk 0:02:43]}  a6 {[%clk 0:02:37]} 12. Bxg7 {[%clk 0:02:42]}  Kxg7 {[%clk 0:02:37]} 13. O-O {[%clk 0:02:36]}  b5 {[%clk 0:02:37]} 14. b3 {[%clk 0:02:27]}  b4 {[%clk 0:02:37]} 15. Nd1 {[%clk 0:02:22]}  Nxe4 {[%clk 0:02:37]} 16. Qxb4 {[%clk 0:02:22]}  a5 {[%clk 0:02:31]} 17. Qe1 {[%clk 0:02:19]}  a4 {[%clk 0:02:29]} 18. Nc3 {[%clk 0:02:12]}  Nf6 {[%clk 0:02:17]} 19. Qd2 {[%clk 0:02:08]}  h6 {[%clk 0:02:13]} 20. Bd3 {[%clk 0:02:07]}  Nh7 {[%clk 0:02:04]} 21. b4 {[%clk 0:02:04]}  f5 {[%clk 0:01:58]} 22. Bc2 {[%clk 0:02:04]}  a3 {[%clk 0:01:58]} 23. c5 {[%clk 0:02:01]}  Ng8 {[%clk 0:01:49]} 24. c6 {[%clk 0:01:56]}  Bc8 {[%clk 0:01:48]} 25. b5 {[%clk 0:01:56]}  Qf6 {[%clk 0:01:43]} 26. Rab1 {[%clk 0:01:53]}  g5 {[%clk 0:01:37]} 27. Nh2 {[%clk 0:01:48]}  g4 {[%clk 0:01:30]} 28. hxg4 {[%clk 0:01:44]}  fxg4 {[%clk 0:01:30]} 29. Ne4 {[%clk 0:01:41]}  Qh4 {[%clk 0:01:27]} 30. Qd3 {[%clk 0:01:36]}  Bf5 {[%clk 0:01:20]} 31. Qe2 {[%clk 0:01:05]}  Bxe4 {[%clk 0:01:13]} 32. Qxe4 {[%clk 0:01:03]}  Ngf6 {[%clk 0:01:09]} 33. Qg6+ {[%clk 0:01:01]}  Kh8 {[%clk 0:01:09]} 34. b6 {[%clk 0:00:59]}  Rg8 {[%clk 0:01:09]} 35. Qf5 {[%clk 0:00:47]}  cxb6 {[%clk 0:01:07]} 36. Rxb6 {[%clk 0:00:43]}  g3 {[%clk 0:01:03]} 37. Nf3 {[%clk 0:00:38]}  Qf4 {[%clk 0:00:53]} 38. Qxf4 {[%clk 0:00:28]}  exf4 {[%clk 0:00:53]} 39. c7 {[%clk 0:00:24]}  Nxd5 {[%clk 0:00:50]} 40. Rxd6 {[%clk 0:00:21]}  Nxc7 {[%clk 0:00:48]} 41. Rd7 {[%clk 0:00:20]}  Rg7 {[%clk 0:00:46]} 42. Rfd1 {[%clk 0:00:20]}  Rxd7 {[%clk 0:00:42]} 43. Rxd7 {[%clk 0:00:19]}  Ne6 {[%clk 0:00:41]} 44. Rxh7+ {[%clk 0:00:18]}  Kg8 {[%clk 0:00:41]} 45. Rxh6 {[%clk 0:00:16]}  Nc5 {[%clk 0:00:30]} 46. fxg3 {[%clk 0:00:14]}  fxg3 {[%clk 0:00:29]} 47. Rg6+ {[%clk 0:00:14]}  Kf7 {[%clk 0:00:30]} 48. Rxg3 {[%clk 0:00:14]}  Rb8 {[%clk 0:00:29]} 49. Kh2 {[%clk 0:00:13]}  Rb2 {[%clk 0:00:28]} 50. Bg6+ {[%clk 0:00:13]}  Kf6 {[%clk 0:00:28]} 51. Nd4 {[%clk 0:00:10]}  Rxa2 {[%clk 0:00:26]} 52. Nb5 {[%clk 0:00:10]}  Ra1 {[%clk 0:00:17]} 53. Nxa3 {[%clk 0:00:10]}  Nd7 {[%clk 0:00:15]} 54. Nc4 {[%clk 0:00:09]}  Nf8 {[%clk 0:00:14]} 55. Bd3 {[%clk 0:00:07]}  Ne6 {[%clk 0:00:14]} 56. Rf3+ {[%clk 0:00:07]}  Kg5 {[%clk 0:00:13]} 57. Kg3 {[%clk 0:00:07]}  Nd4 {[%clk 0:00:10]} 58. Re3 {[%clk 0:00:07]}  Rd1 {[%clk 0:00:07]} 59. Ne5 {[%clk 0:00:06]}  Nf5+ {[%clk 0:00:05]} 60. Bxf5 {[%clk 0:00:06]}  Kxf5 {[%clk 0:00:06]} 61. Nf3 {[%clk 0:00:06]}  Ra1 {[%clk 0:00:06]} 62. Re5+ {[%clk 0:00:06]}  Kg6 {[%clk 0:00:07]} 63. Kg4 {[%clk 0:00:06]}  Ra4+ {[%clk 0:00:07]} 64. Kg3 {[%clk 0:00:06]}  Ra2 {[%clk 0:00:08]} 65. Rg5+ {[%clk 0:00:06]}  Kh6 {[%clk 0:00:08]} 66. Rc5 {[%clk 0:00:07]}  Kg6 {[%clk 0:00:07]} 67. Rc4 {[%clk 0:00:07]}  Kf5 {[%clk 0:00:06]} 68. Nd4+ {[%clk 0:00:06]}  Ke4 {[%clk 0:00:06]} 69. Nf3+ {[%clk 0:00:06]}  Kd5 {[%clk 0:00:06]} 70. Rf4 {[%clk 0:00:05]}  Ke6 {[%clk 0:00:06]} 71. Rf8 {[%clk 0:00:04]}  Ra1 {[%clk 0:00:07]} 72. Kg4 {[%clk 0:00:04]}  Ke7 {[%clk 0:00:08]} 73. Rf4 {[%clk 0:00:04]}  Ra5 {[%clk 0:00:09]} 74. g3 {[%clk 0:00:04]}  Ra1 {[%clk 0:00:09]} 75. Re4+ {[%clk 0:00:05]}  Kf7 {[%clk 0:00:08]} 76. Rf4+ {[%clk 0:00:06]}  Kg7 {[%clk 0:00:09]} 77. Ne5 {[%clk 0:00:06]}  Ra8 {[%clk 0:00:09]} 78. Rf7+ {[%clk 0:00:06]}  Kh8 {[%clk 0:00:09]} 79. Kf5 {[%clk 0:00:06]}  Rg8 {[%clk 0:00:09]} 80. g4 {[%clk 0:00:06]}  Rb8 {[%clk 0:00:09]} 81. g5 {[%clk 0:00:07]}  Rb2 {[%clk 0:00:09]} 82. g6 {[%clk 0:00:07]}  Rf2+ {[%clk 0:00:08]} 83. Kg5 {[%clk 0:00:07]}  Rg2+ {[%clk 0:00:09]} 84. Kf6 {[%clk 0:00:07]}  Rf2+ {[%clk 0:00:08]} 85. Ke7 {[%clk 0:00:07]}  Kg8 {[%clk 0:00:08]} 86. Rxf2 {[%clk 0:00:06]}  Kg7 {[%clk 0:00:09]} 87. Rf7+ {[%clk 0:00:05]}  Kh6 {[%clk 0:00:08]} 88. Rh7+ {[%clk 0:00:05]}  Kg5 {[%clk 0:00:08]} 89. g7 {[%clk 0:00:06]}  Kf5 {[%clk 0:00:09]} 90. g8=Q {[%clk 0:00:06]}  Ke4 {[%clk 0:00:10]} 91. Rf7 {[%clk 0:00:07]}  Kd5 {[%clk 0:00:11]} 92. Qg6 {[%clk 0:00:07]}  Kc5 {[%clk 0:00:11]} 93. Qd6+ {[%clk 0:00:07]}  Kb5 {[%clk 0:00:08]} 94. Nf3 {[%clk 0:00:07]}  Ka5 {[%clk 0:00:09]} 95. Rf5+ {[%clk 0:00:07]}  Ka4 {[%clk 0:00:10]} 96. Qd4+ {[%clk 0:00:07]}  Ka3 {[%clk 0:00:11]} 97. Nh4 {[%clk 0:00:07]}  Kb3 {[%clk 0:00:12]} 98. Rf3+ {[%clk 0:00:08]}  Kc2 {[%clk 0:00:12]} 99. Qf2+ {[%clk 0:00:08]}  Kd1 {[%clk 0:00:12]} 100. Rg3 {[%clk 0:00:09]}  Kc1 {[%clk 0:00:11]} 101. Rg1# {[%clk 0:00:10]} 1-0


[Site "https://www.chess.com"]

[Event "Titled Tuesday Blitz April 4 Late 2023"]
[White "Bacallao Alonso, Yusnel"]
[Black "Zampronha, Wladimir Camilo"]
[WhiteFideId "3507416"]
[BlackFideId "2103087"]
[WhiteElo "2561"]
[BlackElo "2176"]
[Result "1-0"]
[Round "07"]
[TimeControl "180+2"]
[Date "2023.04.04"]
[WhiteClock "0:00:49"]
[BlackClock "0:00:10"]

1. d4 {[%clk 0:03:00]}  Nf6 {[%clk 0:02:59]} 2. c4 {[%clk 0:03:00]}  e6 {[%clk 0:03:00]} 3. Nf3 {[%clk 0:03:00]}  d5 {[%clk 0:02:57]} 4. Nc3 {[%clk 0:03:00]}  Bb4 {[%clk 0:02:56]} 5. Qa4+ {[%clk 0:02:59]}  Nc6 {[%clk 0:02:56]} 6. a3 {[%clk 0:02:59]}  Bxc3+ {[%clk 0:02:54]} 7. bxc3 {[%clk 0:03:00]}  O-O {[%clk 0:02:53]} 8. Bg5 {[%clk 0:02:59]}  Bd7 {[%clk 0:02:51]} 9. Qc2 {[%clk 0:02:57]}  h6 {[%clk 0:02:46]} 10. Bh4 {[%clk 0:02:57]}  dxc4 {[%clk 0:02:47]} 11. e4 {[%clk 0:02:55]}  g5 {[%clk 0:02:43]} 12. Nxg5 {[%clk 0:02:24]}  hxg5 {[%clk 0:02:43]} 13. Bxg5 {[%clk 0:02:24]}  e5 {[%clk 0:02:44]} 14. f4 {[%clk 0:02:23]}  exd4 {[%clk 0:02:41]} 15. Bxc4 {[%clk 0:02:23]}  Qe7 {[%clk 0:02:33]} 16. O-O {[%clk 0:02:01]}  Qxe4 {[%clk 0:02:27]} 17. Bd3 {[%clk 0:02:00]}  Qe3+ {[%clk 0:02:27]} 18. Kh1 {[%clk 0:02:00]}  Qe6 {[%clk 0:01:41]} 19. Rae1 {[%clk 0:01:43]}  Qd6 {[%clk 0:01:41]} 20. c4 {[%clk 0:01:15]}  Rfe8 {[%clk 0:01:39]} 21. c5 {[%clk 0:01:13]}  Qd5 {[%clk 0:01:05]} 22. Bxf6 {[%clk 0:01:09]}  Rxe1 {[%clk 0:01:06]} 23. Rxe1 {[%clk 0:01:08]}  Re8 {[%clk 0:01:07]} 24. Rxe8+ {[%clk 0:01:00]}  Bxe8 {[%clk 0:01:07]} 25. Qf2 {[%clk 0:00:53]}  Bd7 {[%clk 0:00:09]} 26. Qg3+ {[%clk 0:00:50]}  Kf8 {[%clk 0:00:09]} 27. Qg7+ {[%clk 0:00:50]}  Ke8 {[%clk 0:00:10]} 28. Qh8# {[%clk 0:00:49]} 1-0


[Site "https://www.chess.com"]

[Event "Titled Tuesday Blitz April 4 Late 2023"]
[White "Michalski, Olaf"]
[Black "Georg, Heinz"]
[WhiteFideId "1106740"]
[BlackFideId "4607295"]
[WhiteElo "2173"]
[BlackElo "2238"]
[Result "0-1"]
[Round "07"]
[TimeControl "180+2"]
[Date "2023.04.04"]
[WhiteClock "0:00:04"]
[BlackClock "0:01:13"]

1. d4 {[%clk 0:02:56]}  f5 {[%clk 0:02:59]} 2. g3 {[%clk 0:02:56]}  Nf6 {[%clk 0:02:59]} 3. Bg2 {[%clk 0:02:56]}  g6 {[%clk 0:02:59]} 4. c3 {[%clk 0:02:54]}  Bg7 {[%clk 0:02:59]} 5. Qb3 {[%clk 0:02:54]}  c6 {[%clk 0:02:57]} 6. Nd2 {[%clk 0:02:48]}  d5 {[%clk 0:02:56]} 7. Ndf3 {[%clk 0:02:40]}  O-O {[%clk 0:02:55]} 8. Bf4 {[%clk 0:02:38]}  Nbd7 {[%clk 0:02:49]} 9. Ne5 {[%clk 0:02:37]}  e6 {[%clk 0:02:46]} 10. Nxd7 {[%clk 0:02:29]}  Qxd7 {[%clk 0:02:45]} 11. Nf3 {[%clk 0:02:28]}  Ne4 {[%clk 0:02:44]} 12. Ne5 {[%clk 0:02:28]}  Bxe5 {[%clk 0:02:43]} 13. Bxe5 {[%clk 0:02:28]}  b6 {[%clk 0:02:38]} 14. Bxe4 {[%clk 0:01:35]}  fxe4 {[%clk 0:02:36]} 15. O-O {[%clk 0:01:35]}  Ba6 {[%clk 0:02:35]} 16. Rae1 {[%clk 0:01:24]}  c5 {[%clk 0:02:33]} 17. Qa3 {[%clk 0:01:20]}  Qb5 {[%clk 0:02:31]} 18. f4 {[%clk 0:01:05]}  cxd4 {[%clk 0:02:20]} 19. Bxd4 {[%clk 0:01:00]}  Rf7 {[%clk 0:02:16]} 20. Qb3 {[%clk 0:00:35]}  Rc8 {[%clk 0:02:06]} 21. Qb4 {[%clk 0:00:28]}  Qxb4 {[%clk 0:02:04]} 22. cxb4 {[%clk 0:00:28]}  Rc2 {[%clk 0:02:04]} 23. Kf2 {[%clk 0:00:23]}  Rfc7 {[%clk 0:02:03]} 24. Ke3 {[%clk 0:00:19]}  Bc4 {[%clk 0:01:43]} 25. a3 {[%clk 0:00:09]}  Bb5 {[%clk 0:01:42]} 26. Rf2 {[%clk 0:00:09]}  h5 {[%clk 0:01:26]} 27. Rd1 {[%clk 0:00:08]}  Ba4 {[%clk 0:01:21]} 28. Rd2 {[%clk 0:00:08]}  Rc1 {[%clk 0:01:21]} 29. Bc3 {[%clk 0:00:08]}  Rc4 {[%clk 0:01:17]} 30. h3 {[%clk 0:00:07]}  R1xc3+ {[%clk 0:01:14]} 31. bxc3 {[%clk 0:00:07]}  Rxc3+ {[%clk 0:01:14]} 32. Kd4 {[%clk 0:00:07]}  Rxg3 {[%clk 0:01:15]} 33. Ke5 {[%clk 0:00:07]}  Kf7 {[%clk 0:01:15]} 34. f5 {[%clk 0:00:07]}  gxf5 {[%clk 0:01:13]} 35. Kd6 {[%clk 0:00:04]}  e3 {[%clk 0:01:13]} 0-1


[Site "https://www.chess.com"]

[Event "Titled Tuesday Blitz April 4 Late 2023"]
[White "Andreikin, Dmitry"]
[Black "Sargsyan, Shant"]
[WhiteFideId "4158814"]
[BlackFideId "13306766"]
[WhiteElo "2736"]
[BlackElo "2628"]
[Result "1/2-1/2"]
[Round "08"]
[TimeControl "180+2"]
[Date "2023.04.04"]
[WhiteClock "0:00:19"]
[BlackClock "0:00:04"]

1. d4 {[%clk 0:03:00]}  g6 {[%clk 0:03:00]} 2. e4 {[%clk 0:03:00]}  Bg7 {[%clk 0:02:58]} 3. Nf3 {[%clk 0:03:00]}  c6 {[%clk 0:02:58]} 4. Bd3 {[%clk 0:02:57]}  d6 {[%clk 0:02:58]} 5. O-O {[%clk 0:02:56]}  Bg4 {[%clk 0:02:58]} 6. c3 {[%clk 0:02:55]}  Nf6 {[%clk 0:02:56]} 7. Nbd2 {[%clk 0:02:54]}  Nbd7 {[%clk 0:02:51]} 8. h3 {[%clk 0:02:53]}  Bxf3 {[%clk 0:02:51]} 9. Nxf3 {[%clk 0:02:54]}  O-O {[%clk 0:02:52]} 10. Qb3 {[%clk 0:02:46]}  Qb6 {[%clk 0:02:50]} 11. Bg5 {[%clk 0:02:44]}  h6 {[%clk 0:02:47]} 12. Be3 {[%clk 0:02:44]}  Qxb3 {[%clk 0:02:40]} 13. axb3 {[%clk 0:02:45]}  a6 {[%clk 0:02:40]} 14. b4 {[%clk 0:02:44]}  Rfd8 {[%clk 0:02:30]} 15. Rfd1 {[%clk 0:02:44]}  Ne8 {[%clk 0:02:30]} 16. Nd2 {[%clk 0:02:44]}  Nc7 {[%clk 0:02:30]} 17. Nc4 {[%clk 0:02:41]}  d5 {[%clk 0:02:23]} 18. Na5 {[%clk 0:02:41]}  dxe4 {[%clk 0:02:22]} 19. Bxe4 {[%clk 0:02:41]}  Nf6 {[%clk 0:02:15]} 20. Bf3 {[%clk 0:02:36]}  Rab8 {[%clk 0:02:15]} 21. Bf4 {[%clk 0:02:30]}  Nfe8 {[%clk 0:02:03]} 22. Bxc6 {[%clk 0:02:29]}  bxc6 {[%clk 0:02:03]} 23. Nxc6 {[%clk 0:02:30]}  e6 {[%clk 0:01:58]} 24. Ra5 {[%clk 0:02:23]}  Bf8 {[%clk 0:01:53]} 25. Rda1 {[%clk 0:02:08]}  Ra8 {[%clk 0:01:45]} 26. Nxd8 {[%clk 0:02:07]}  Rxd8 {[%clk 0:01:46]} 27. Kf1 {[%clk 0:02:05]}  g5 {[%clk 0:01:45]} 28. Bxc7 {[%clk 0:01:59]}  Nxc7 {[%clk 0:01:44]} 29. Ke2 {[%clk 0:02:00]}  f6 {[%clk 0:01:40]} 30. Rxa6 {[%clk 0:01:50]}  Nxa6 {[%clk 0:01:40]} 31. Rxa6 {[%clk 0:01:50]}  Kf7 {[%clk 0:01:40]} 32. b5 {[%clk 0:01:44]}  e5 {[%clk 0:01:38]} 33. dxe5 {[%clk 0:01:41]}  fxe5 {[%clk 0:01:38]} 34. Rc6 {[%clk 0:01:36]}  Bd6 {[%clk 0:01:23]} 35. Ke3 {[%clk 0:01:21]}  Ke6 {[%clk 0:01:23]} 36. c4 {[%clk 0:01:21]}  Kd7 {[%clk 0:01:13]} 37. c5 {[%clk 0:01:21]}  Be7 {[%clk 0:01:10]} 38. Kd3 {[%clk 0:01:07]}  Rf8 {[%clk 0:01:04]} 39. f3 {[%clk 0:00:56]}  Rf4 {[%clk 0:01:04]} 40. Kc3 {[%clk 0:00:55]}  e4 {[%clk 0:00:55]} 41. fxe4 {[%clk 0:00:56]}  Rxe4 {[%clk 0:00:56]} 42. b4 {[%clk 0:00:54]}  Re3+ {[%clk 0:00:48]} 43. Kc4 {[%clk 0:00:54]}  Re4+ {[%clk 0:00:48]} 44. Kd5 {[%clk 0:00:38]}  Rxb4 {[%clk 0:00:42]} 45. b6 {[%clk 0:00:39]}  Rd4+ {[%clk 0:00:42]} 46. Kxd4 {[%clk 0:00:36]}  Kxc6 {[%clk 0:00:43]} 47. Ke5 {[%clk 0:00:26]}  Bxc5 {[%clk 0:00:32]} 48. Kf5 {[%clk 0:00:27]}  Bxb6 {[%clk 0:00:11]} 49. Kg6 {[%clk 0:00:25]}  Kd5 {[%clk 0:00:10]} 50. Kxh6 {[%clk 0:00:23]}  Bd8 {[%clk 0:00:10]} 51. Kh5 {[%clk 0:00:19]}  Ke4 {[%clk 0:00:07]} 52. Kg4 {[%clk 0:00:19]}  Ke3 {[%clk 0:00:04]} 53. h4 {[%clk 0:00:19]}  gxh4 {[%clk 0:00:04]} 54. g3 {[%clk 0:00:19]}  hxg3 {[%clk 0:00:04]} 55. Kxg3 {[%clk 0:00:19]} 1/2-1/2


[Site "https://www.chess.com"]

[Event "Titled Tuesday Blitz April 4 Late 2023"]
[White "Fedoseev, Vladimir"]
[Black "Kravtsiv, Martyn"]
[WhiteFideId "24130737"]
[BlackFideId "14113147"]
[WhiteElo "2752"]
[BlackElo "2695"]
[Result "1-0"]
[Round "08"]
[TimeControl "180+2"]
[Date "2023.04.04"]
[WhiteClock "0:00:29"]
[BlackClock "0:00:03"]

1. b3 {[%clk 0:03:00]}  e5 {[%clk 0:02:59]} 2. Bb2 {[%clk 0:03:01]}  Nc6 {[%clk 0:02:57]} 3. c4 {[%clk 0:02:59]}  Nf6 {[%clk 0:02:56]} 4. e3 {[%clk 0:02:57]}  d5 {[%clk 0:02:53]} 5. cxd5 {[%clk 0:02:56]}  Nxd5 {[%clk 0:02:54]} 6. Nf3 {[%clk 0:02:50]}  Bd6 {[%clk 0:02:52]} 7. Bc4 {[%clk 0:02:41]}  Be6 {[%clk 0:02:43]} 8. O-O {[%clk 0:02:37]}  O-O {[%clk 0:02:41]} 9. d3 {[%clk 0:02:33]}  f6 {[%clk 0:02:27]} 10. Nc3 {[%clk 0:02:20]}  Nce7 {[%clk 0:02:22]} 11. d4 {[%clk 0:02:19]}  exd4 {[%clk 0:01:59]} 12. Nxd4 {[%clk 0:02:17]}  Bf7 {[%clk 0:01:58]} 13. Nxd5 {[%clk 0:02:16]}  Nxd5 {[%clk 0:01:56]} 14. Nf5 {[%clk 0:02:12]}  Ne7 {[%clk 0:01:43]} 15. Nxd6 {[%clk 0:01:44]}  Qxd6 {[%clk 0:01:40]} 16. Qxd6 {[%clk 0:01:43]}  cxd6 {[%clk 0:01:40]} 17. Bxf7+ {[%clk 0:01:44]}  Kxf7 {[%clk 0:01:40]} 18. Rfd1 {[%clk 0:01:44]}  Ke6 {[%clk 0:01:37]} 19. Rd2 {[%clk 0:01:42]}  Rfd8 {[%clk 0:01:34]} 20. Rad1 {[%clk 0:01:43]}  Rac8 {[%clk 0:01:28]} 21. g4 {[%clk 0:01:38]}  Nc6 {[%clk 0:01:22]} 22. Kg2 {[%clk 0:01:33]}  d5 {[%clk 0:01:15]} 23. h4 {[%clk 0:01:21]}  g6 {[%clk 0:01:07]} 24. g5 {[%clk 0:01:20]}  f5 {[%clk 0:01:05]} 25. h5 {[%clk 0:01:17]}  Ne5 {[%clk 0:00:53]} 26. hxg6 {[%clk 0:01:11]}  hxg6 {[%clk 0:00:52]} 27. Kg3 {[%clk 0:01:10]}  Nf7 {[%clk 0:00:50]} 28. Bf6 {[%clk 0:01:06]}  Rd6 {[%clk 0:00:47]} 29. Kf4 {[%clk 0:01:02]}  a5 {[%clk 0:00:35]} 30. Rh1 {[%clk 0:01:02]}  a4 {[%clk 0:00:33]} 31. Rh7 {[%clk 0:01:02]}  axb3 {[%clk 0:00:32]} 32. axb3 {[%clk 0:01:02]}  Rg8 {[%clk 0:00:31]} 33. Rc2 {[%clk 0:00:51]}  Rc6 {[%clk 0:00:31]} 34. Rxc6+ {[%clk 0:00:45]}  bxc6 {[%clk 0:00:30]} 35. Bd4 {[%clk 0:00:44]}  Ke7 {[%clk 0:00:17]} 36. b4 {[%clk 0:00:40]}  Ke6 {[%clk 0:00:17]} 37. Bc5 {[%clk 0:00:37]}  Rh8 {[%clk 0:00:04]} 38. Rg7 {[%clk 0:00:32]}  Rh4+ {[%clk 0:00:04]} 39. Kf3 {[%clk 0:00:33]}  Nxg5+ {[%clk 0:00:02]} 40. Ke2 {[%clk 0:00:33]}  Kf6 {[%clk 0:00:02]} 41. Rc7 {[%clk 0:00:32]}  Rc4 {[%clk 0:00:02]} 42. Be7+ {[%clk 0:00:30]}  Ke6 {[%clk 0:00:03]} 43. Bxg5 {[%clk 0:00:30]}  Kd6 {[%clk 0:00:03]} 44. Rb7 {[%clk 0:00:29]} 1-0


[Site "https://www.chess.com"]

[Event "Titled Tuesday Blitz April 4 Late 2023"]
[White "Indjic, Aleksandar"]
[Black "Rodshtein, Maxim"]
[WhiteFideId "911925"]
[BlackFideId "2806851"]
[WhiteElo "2614"]
[BlackElo "2555"]
[Result "1-0"]
[Round "08"]
[TimeControl "180+2"]
[Date "2023.04.04"]
[WhiteClock "0:00:27"]
[BlackClock "0:00:03"]

1. d4 {[%clk 0:03:00]}  Nf6 {[%clk 0:02:59]} 2. c4 {[%clk 0:03:01]}  e6 {[%clk 0:02:59]} 3. Nc3 {[%clk 0:03:01]}  Bb4 {[%clk 0:02:59]} 4. e3 {[%clk 0:03:02]}  O-O {[%clk 0:02:58]} 5. Bd3 {[%clk 0:03:03]}  d5 {[%clk 0:02:58]} 6. a3 {[%clk 0:03:03]}  Bxc3+ {[%clk 0:02:57]} 7. bxc3 {[%clk 0:03:04]}  dxc4 {[%clk 0:02:58]} 8. Bxc4 {[%clk 0:03:05]}  c5 {[%clk 0:02:58]} 9. Bd3 {[%clk 0:03:06]}  Nc6 {[%clk 0:02:53]} 10. Nf3 {[%clk 0:03:05]}  b6 {[%clk 0:02:39]} 11. Bb2 {[%clk 0:03:00]}  Bb7 {[%clk 0:02:34]} 12. e4 {[%clk 0:02:59]}  Ne7 {[%clk 0:02:17]} 13. Qe2 {[%clk 0:02:57]}  Qc7 {[%clk 0:02:10]} 14. O-O {[%clk 0:02:56]}  Ng6 {[%clk 0:02:01]} 15. g3 {[%clk 0:02:56]}  Rfd8 {[%clk 0:02:00]} 16. Rfe1 {[%clk 0:02:53]}  Rac8 {[%clk 0:01:59]} 17. a4 {[%clk 0:02:50]}  Ne8 {[%clk 0:01:12]} 18. h4 {[%clk 0:02:47]}  Nf6 {[%clk 0:01:11]} 19. Nd2 {[%clk 0:02:47]}  Qd7 {[%clk 0:01:00]} 20. h5 {[%clk 0:02:33]}  Nf8 {[%clk 0:00:56]} 21. h6 {[%clk 0:02:33]}  gxh6 {[%clk 0:00:56]} 22. Qf3 {[%clk 0:02:22]}  Qe7 {[%clk 0:00:54]} 23. Qf4 {[%clk 0:02:20]}  h5 {[%clk 0:00:45]} 24. Qg5+ {[%clk 0:02:16]}  Ng6 {[%clk 0:00:44]} 25. Nf3 {[%clk 0:01:53]}  Kh8 {[%clk 0:00:39]} 26. d5 {[%clk 0:01:53]}  e5 {[%clk 0:00:16]} 27. c4 {[%clk 0:01:51]}  Re8 {[%clk 0:00:16]} 28. a5 {[%clk 0:01:48]}  Rb8 {[%clk 0:00:14]} 29. axb6 {[%clk 0:01:48]}  axb6 {[%clk 0:00:15]} 30. Ra7 {[%clk 0:01:48]}  Qd6 {[%clk 0:00:14]} 31. Bc3 {[%clk 0:01:30]}  Re7 {[%clk 0:00:14]} 32. Rb1 {[%clk 0:01:25]}  Rbe8 {[%clk 0:00:15]} 33. Ra2 {[%clk 0:01:17]}  Bc8 {[%clk 0:00:14]} 34. Rab2 {[%clk 0:01:18]}  Nd7 {[%clk 0:00:13]} 35. Qxh5 {[%clk 0:01:17]}  f6 {[%clk 0:00:13]} 36. Qh6 {[%clk 0:01:14]}  Rf7 {[%clk 0:00:13]} 37. Kf1 {[%clk 0:01:10]}  Rg8 {[%clk 0:00:13]} 38. Ke2 {[%clk 0:01:08]}  Ne7 {[%clk 0:00:12]} 39. Nd2 {[%clk 0:01:05]}  Rg6 {[%clk 0:00:12]} 40. Qh5 {[%clk 0:01:01]}  Kg8 {[%clk 0:00:12]} 41. Ra1 {[%clk 0:00:57]}  f5 {[%clk 0:00:12]} 42. exf5 {[%clk 0:00:54]}  Nf6 {[%clk 0:00:12]} 43. fxg6 {[%clk 0:00:52]}  Nxh5 {[%clk 0:00:10]} 44. gxf7+ {[%clk 0:00:53]}  Kxf7 {[%clk 0:00:11]} 45. Ne4 {[%clk 0:00:53]}  Qg6 {[%clk 0:00:10]} 46. Bxe5 {[%clk 0:00:28]}  Bg4+ {[%clk 0:00:10]} 47. f3 {[%clk 0:00:27]}  Bxf3+ {[%clk 0:00:09]} 48. Kxf3 {[%clk 0:00:27]}  Qf5+ {[%clk 0:00:09]} 49. Bf4 {[%clk 0:00:27]}  Qh3 {[%clk 0:00:03]} 50. Ng5+ {[%clk 0:00:27]} 1-0


[Site "https://www.chess.com"]

[Event "Titled Tuesday Blitz April 4 Late 2023"]
[White "Paravyan, David"]
[Black "Xiong, Jeffery"]
[WhiteFideId "4194985"]
[BlackFideId "2047640"]
[WhiteElo "2563"]
[BlackElo "2726"]
[Result "1-0"]
[Round "08"]
[TimeControl "180+2"]
[Date "2023.04.04"]
[WhiteClock "0:00:13"]
[BlackClock "0:01:41"]

1. Nf3 {[%clk 0:03:00]}  d5 {[%clk 0:03:00]} 2. g3 {[%clk 0:03:00]}  g6 {[%clk 0:03:00]} 3. Bg2 {[%clk 0:03:00]}  Bg7 {[%clk 0:03:01]} 4. d4 {[%clk 0:03:01]}  Nf6 {[%clk 0:03:01]} 5. O-O {[%clk 0:03:01]}  O-O {[%clk 0:03:01]} 6. c4 {[%clk 0:03:02]}  c6 {[%clk 0:03:02]} 7. Qa4 {[%clk 0:03:01]}  dxc4 {[%clk 0:03:02]} 8. Qxc4 {[%clk 0:03:01]}  Bf5 {[%clk 0:03:03]} 9. Nc3 {[%clk 0:02:58]}  Nbd7 {[%clk 0:03:03]} 10. Qb3 {[%clk 0:02:57]}  Qb6 {[%clk 0:03:01]} 11. Qa3 {[%clk 0:02:51]}  Rfe8 {[%clk 0:03:01]} 12. Bf4 {[%clk 0:02:13]}  Bf8 {[%clk 0:03:01]} 13. Ne5 {[%clk 0:01:25]}  Nxe5 {[%clk 0:02:44]} 14. dxe5 {[%clk 0:01:15]}  Nd5 {[%clk 0:02:36]} 15. Nxd5 {[%clk 0:00:42]}  cxd5 {[%clk 0:02:35]} 16. Rfc1 {[%clk 0:00:38]}  e6 {[%clk 0:02:19]} 17. Qb3 {[%clk 0:00:38]}  Rac8 {[%clk 0:02:18]} 18. Be3 {[%clk 0:00:33]}  Qxb3 {[%clk 0:02:18]} 19. axb3 {[%clk 0:00:33]}  a6 {[%clk 0:02:19]} 20. Bd2 {[%clk 0:00:26]}  h6 {[%clk 0:02:17]} 21. e3 {[%clk 0:00:21]}  Bd3 {[%clk 0:02:15]} 22. Bf1 {[%clk 0:00:20]}  Bxf1 {[%clk 0:02:15]} 23. Kxf1 {[%clk 0:00:21]}  Be7 {[%clk 0:02:02]} 24. Ke2 {[%clk 0:00:21]}  f6 {[%clk 0:02:03]} 25. exf6 {[%clk 0:00:18]}  Bxf6 {[%clk 0:02:04]} 26. Bc3 {[%clk 0:00:19]}  Be7 {[%clk 0:02:04]} 27. Kd3 {[%clk 0:00:17]}  Kf7 {[%clk 0:02:04]} 28. Be5 {[%clk 0:00:15]}  Bb4 {[%clk 0:01:47]} 29. g4 {[%clk 0:00:16]}  Ke7 {[%clk 0:01:47]} 30. h4 {[%clk 0:00:14]}  Kf7 {[%clk 0:01:47]} 31. f4 {[%clk 0:00:12]}  Be7 {[%clk 0:01:42]} 32. h5 {[%clk 0:00:12]}  gxh5 {[%clk 0:01:41]} 33. gxh5 {[%clk 0:00:13]}  Rh8 {[%clk 0:01:42]} 34. Bxh8 {[%clk 0:00:13]}  Rxh8 {[%clk 0:01:41]} 35. Rc7 {[%clk 0:00:13]} 1-0


[Site "https://www.chess.com"]